[Event "Titled Tuesday Blitz May 9 Late 2023"]
[White "Vaglio Munoz, Jaime"]
[Black "K2JW"]
[WhiteFideId "6500145"]
[WhiteElo "2199"]
[BlackElo "2389"]
[Result "1/2-1/2"]
[Round "09"]
[TimeControl "180+2"]
[Date "2023.05.09"]
[WhiteClock "0:00:19"]
[BlackClock "0:00:16"]

1. e4 {[%clk 0:03:00]}  c5 {[%clk 0:03:00]} 2. a3 {[%clk 0:03:00]}  Nc6 {[%clk 0:02:57]} 3. b4 {[%clk 0:02:59]}  cxb4 {[%clk 0:02:57]} 4. axb4 {[%clk 0:03:00]}  Nxb4 {[%clk 0:02:57]} 5. c3 {[%clk 0:03:00]}  Nc6 {[%clk 0:02:56]} 6. d4 {[%clk 0:03:01]}  d5 {[%clk 0:02:35]} 7. exd5 {[%clk 0:03:02]}  Qxd5 {[%clk 0:02:35]} 8. Na3 {[%clk 0:03:02]}  Bf5 {[%clk 0:02:04]} 9. Nf3 {[%clk 0:02:56]}  e6 {[%clk 0:02:00]} 10. Nb5 {[%clk 0:02:54]}  Rc8 {[%clk 0:01:52]} 11. Bf4 {[%clk 0:02:53]}  Qd7 {[%clk 0:01:49]} 12. Nxa7 {[%clk 0:02:47]}  Nxa7 {[%clk 0:01:48]} 13. Rxa7 {[%clk 0:02:47]}  Ne7 {[%clk 0:00:55]} 14. Ne5 {[%clk 0:02:40]}  Qd5 {[%clk 0:00:56]} 15. f3 {[%clk 0:01:55]}  Ng6 {[%clk 0:00:45]} 16. Qa4+ {[%clk 0:01:39]}  Kd8 {[%clk 0:00:39]} 17. Bc4 {[%clk 0:01:37]}  Rxc4 {[%clk 0:00:30]} 18. Ra8+ {[%clk 0:01:03]}  Rc8 {[%clk 0:00:29]} 19. c4 {[%clk 0:01:00]}  Qxd4 {[%clk 0:00:23]} 20. Qa5+ {[%clk 0:00:50]}  b6 {[%clk 0:00:22]} 21. Rxc8+ {[%clk 0:00:47]}  Kxc8 {[%clk 0:00:20]} 22. Qa8+ {[%clk 0:00:47]}  Kc7 {[%clk 0:00:19]} 23. Qa7+ {[%clk 0:00:42]}  Kc8 {[%clk 0:00:16]} 24. Qa8+ {[%clk 0:00:34]}  Kc7 {[%clk 0:00:16]} 25. Qa7+ {[%clk 0:00:20]}  Kc8 {[%clk 0:00:16]} 26. Qa8+ {[%clk 0:00:19]} 1/2-1/2


[Site "https://www.chess.com"]

[Event "Titled Tuesday Blitz May 9 Late 2023"]
[White "Hollan, Petr"]
[Black "Curtis, John"]
[WhiteFideId "360945"]
[BlackFideId "3200256"]
[WhiteElo "2254"]
[BlackElo "2203"]
[Result "0-1"]
[Round "09"]
[TimeControl "180+2"]
[Date "2023.05.09"]
[WhiteClock "0:00:00"]
[BlackClock "0:00:31"]

1. e4 {[%clk 0:02:55]}  Nf6 {[%clk 0:02:58]} 2. f3 {[%clk 0:02:53]}  e5 {[%clk 0:02:58]} 3. Nc3 {[%clk 0:02:53]}  d5 {[%clk 0:02:58]} 4. exd5 {[%clk 0:02:52]}  Nxd5 {[%clk 0:02:58]} 5. Qe2 {[%clk 0:02:50]}  Nc6 {[%clk 0:02:57]} 6. Qe4 {[%clk 0:02:48]}  Nf6 {[%clk 0:02:56]} 7. Qh4 {[%clk 0:02:46]}  Be7 {[%clk 0:02:55]} 8. Bb5 {[%clk 0:02:46]}  Bd7 {[%clk 0:02:55]} 9. Nge2 {[%clk 0:02:46]}  Nd5 {[%clk 0:02:45]} 10. Qe4 {[%clk 0:02:24]}  Nf6 {[%clk 0:02:34]} 11. Qe3 {[%clk 0:02:17]}  Nb4 {[%clk 0:02:31]} 12. Bd3 {[%clk 0:02:02]}  Nxd3+ {[%clk 0:02:25]} 13. Qxd3 {[%clk 0:02:02]}  Bc5 {[%clk 0:02:20]} 14. Ne4 {[%clk 0:01:58]}  Bb6 {[%clk 0:02:09]} 15. b3 {[%clk 0:01:48]}  O-O {[%clk 0:02:03]} 16. Bb2 {[%clk 0:01:48]}  Nxe4 {[%clk 0:01:56]} 17. Qxe4 {[%clk 0:01:49]}  Bc6 {[%clk 0:01:56]} 18. Qc4 {[%clk 0:01:32]}  Bd5 {[%clk 0:01:39]} 19. Qd3 {[%clk 0:01:31]}  Re8 {[%clk 0:01:36]} 20. O-O-O {[%clk 0:01:30]}  Qd6 {[%clk 0:01:30]} 21. Nc3 {[%clk 0:01:28]}  Rad8 {[%clk 0:01:29]} 22. Nxd5 {[%clk 0:01:27]}  Qxd5 {[%clk 0:01:30]} 23. Qxd5 {[%clk 0:01:28]}  Rxd5 {[%clk 0:01:30]} 24. Rhe1 {[%clk 0:01:28]}  f6 {[%clk 0:01:30]} 25. d3 {[%clk 0:01:28]}  Kf7 {[%clk 0:01:30]} 26. Re2 {[%clk 0:01:29]}  Red8 {[%clk 0:01:30]} 27. Rde1 {[%clk 0:01:29]}  Bd4 {[%clk 0:01:30]} 28. Bxd4 {[%clk 0:01:29]}  Rxd4 {[%clk 0:01:30]} 29. Re4 {[%clk 0:01:29]}  c5 {[%clk 0:01:30]} 30. Kd2 {[%clk 0:01:29]}  b5 {[%clk 0:01:29]} 31. Rxd4 {[%clk 0:01:28]}  cxd4 {[%clk 0:01:29]} 32. Ra1 {[%clk 0:01:26]}  a5 {[%clk 0:01:26]} 33. a4 {[%clk 0:01:25]}  b4 {[%clk 0:01:26]} 34. Re1 {[%clk 0:01:22]}  Ke6 {[%clk 0:01:26]} 35. f4 {[%clk 0:01:22]}  Rf8 {[%clk 0:01:26]} 36. Re4 {[%clk 0:01:20]}  Kd5 {[%clk 0:01:25]} 37. Ke2 {[%clk 0:01:18]}  exf4 {[%clk 0:01:21]} 38. Kf3 {[%clk 0:01:15]}  g5 {[%clk 0:01:20]} 39. Re2 {[%clk 0:01:14]}  Rf7 {[%clk 0:01:16]} 40. Kg4 {[%clk 0:01:14]}  Rc7 {[%clk 0:01:01]} 41. Kf5 {[%clk 0:01:13]}  Rc6 {[%clk 0:01:01]} 42. Re8 {[%clk 0:01:06]}  Kd6 {[%clk 0:00:53]} 43. Re6+ {[%clk 0:01:04]}  Kd7 {[%clk 0:00:53]} 44. Re2 {[%clk 0:00:44]}  h5 {[%clk 0:00:52]} 45. Rd2 {[%clk 0:00:41]}  h4 {[%clk 0:00:51]} 46. Ke4 {[%clk 0:00:40]}  h3 {[%clk 0:00:51]} 47. Kxd4 {[%clk 0:00:36]}  hxg2 {[%clk 0:00:50]} 48. Rxg2 {[%clk 0:00:35]}  Ke6 {[%clk 0:00:50]} 49. Ke4 {[%clk 0:00:36]}  f5+ {[%clk 0:00:50]} 50. Kf3 {[%clk 0:00:36]}  Kf6 {[%clk 0:00:49]} 51. h4 {[%clk 0:00:33]}  gxh4 {[%clk 0:00:48]} 52. Kxf4 {[%clk 0:00:33]}  Rc8 {[%clk 0:00:44]} 53. Rh2 {[%clk 0:00:32]}  Rh8 {[%clk 0:00:44]} 54. Rh3 {[%clk 0:00:32]}  Ke6 {[%clk 0:00:44]} 55. d4 {[%clk 0:00:32]}  Kd5 {[%clk 0:00:44]} 56. Kxf5 {[%clk 0:00:32]}  Kxd4 {[%clk 0:00:44]} 57. Kg5 {[%clk 0:00:32]}  Rh7 {[%clk 0:00:43]} 58. Kg4 {[%clk 0:00:32]}  Rg7+ {[%clk 0:00:42]} 59. Kf5 {[%clk 0:00:27]}  Rg2 {[%clk 0:00:41]} 60. Rxh4+ {[%clk 0:00:26]}  Kc3 {[%clk 0:00:40]} 61. Rc4+ {[%clk 0:00:26]}  Kb2 {[%clk 0:00:40]} 62. Rc5 {[%clk 0:00:25]}  Rxc2 {[%clk 0:00:40]} 63. Rxa5 {[%clk 0:00:26]}  Kxb3 {[%clk 0:00:41]} 64. Ke4 {[%clk 0:00:26]}  Ra2 {[%clk 0:00:41]} 65. Kd3 {[%clk 0:00:23]}  Rxa4 {[%clk 0:00:41]} 66. Rh5 {[%clk 0:00:23]}  Ra2 {[%clk 0:00:39]} 67. Rh1 {[%clk 0:00:18]}  Rg2 {[%clk 0:00:38]} 68. Rb1+ {[%clk 0:00:17]}  Ka3 {[%clk 0:00:39]} 69. Ra1+ {[%clk 0:00:13]}  Kb2 {[%clk 0:00:39]} 70. Rf1 {[%clk 0:00:10]}  b3 {[%clk 0:00:38]} 71. Rf3 {[%clk 0:00:09]}  Ka2 {[%clk 0:00:37]} 72. Rf8 {[%clk 0:00:08]}  Rg3+ {[%clk 0:00:31]} 73. Kd2 {[%clk 0:00:07]}  b2 {[%clk 0:00:31]} 74. Rf2 {[%clk 0:00:00]}  b1=Q {[%clk 0:00:31]} 0-1


[Site "https://www.chess.com"]

[Event "Titled Tuesday Blitz May 9 Late 2023"]
[White "Chemin, Justo Reinaldo"]
[Black "Gatterer, Florian"]
[WhiteFideId "2101580"]
[BlackFideId "811688"]
[WhiteElo "1940"]
[BlackElo "2221"]
[Result "0-1"]
[Round "09"]
[TimeControl "180+2"]
[Date "2023.05.09"]
[WhiteClock "0:00:03"]
[BlackClock "0:00:32"]

1. d4 {[%clk 0:03:00]}  d6 {[%clk 0:02:59]} 2. c4 {[%clk 0:02:59]}  e5 {[%clk 0:02:56]} 3. Nf3 {[%clk 0:02:57]}  e4 {[%clk 0:02:53]} 4. Ng5 {[%clk 0:02:43]}  f5 {[%clk 0:02:52]} 5. Nc3 {[%clk 0:02:36]}  Be7 {[%clk 0:02:49]} 6. Nh3 {[%clk 0:02:33]}  Nf6 {[%clk 0:02:49]} 7. e3 {[%clk 0:02:25]}  O-O {[%clk 0:02:48]} 8. Be2 {[%clk 0:02:25]}  Be6 {[%clk 0:02:45]} 9. Nf4 {[%clk 0:02:23]}  Bf7 {[%clk 0:02:44]} 10. h4 {[%clk 0:02:24]}  c6 {[%clk 0:02:44]} 11. h5 {[%clk 0:02:22]}  d5 {[%clk 0:02:41]} 12. Qb3 {[%clk 0:02:18]}  Nbd7 {[%clk 0:02:16]} 13. cxd5 {[%clk 0:02:01]}  cxd5 {[%clk 0:02:07]} 14. Qxb7 {[%clk 0:01:45]}  Nb6 {[%clk 0:01:59]} 15. Qa6 {[%clk 0:01:38]}  Qc7 {[%clk 0:01:51]} 16. Qa5 {[%clk 0:01:33]}  Rfc8 {[%clk 0:01:33]} 17. Bd2 {[%clk 0:01:32]}  Nc4 {[%clk 0:01:32]} 18. Bxc4 {[%clk 0:01:27]}  Qxa5 {[%clk 0:01:26]} 19. Bb3 {[%clk 0:01:21]}  Bb4 {[%clk 0:01:21]} 20. Rc1 {[%clk 0:01:16]}  Bxc3 {[%clk 0:01:14]} 21. Bxc3 {[%clk 0:01:10]}  Rxc3 {[%clk 0:01:12]} 22. Rxc3 {[%clk 0:01:08]}  Rc8 {[%clk 0:01:10]} 23. Kd2 {[%clk 0:01:07]}  Rxc3 {[%clk 0:01:09]} 24. bxc3 {[%clk 0:01:07]}  g5 {[%clk 0:01:04]} 25. hxg6 {[%clk 0:01:04]}  hxg6 {[%clk 0:01:04]} 26. Rb1 {[%clk 0:00:57]}  Kg7 {[%clk 0:00:59]} 27. f3 {[%clk 0:00:51]}  g5 {[%clk 0:00:59]} 28. Ne2 {[%clk 0:00:48]}  Bh5 {[%clk 0:00:50]} 29. Rf1 {[%clk 0:00:38]}  Qa6 {[%clk 0:00:45]} 30. Bc2 {[%clk 0:00:32]}  Qxa2 {[%clk 0:00:39]} 31. Ng3 {[%clk 0:00:27]}  Bg6 {[%clk 0:00:36]} 32. Rb1 {[%clk 0:00:27]}  f4 {[%clk 0:00:34]} 33. Rb7+ {[%clk 0:00:24]}  Kh6 {[%clk 0:00:34]} 34. Nf1 {[%clk 0:00:03]}  exf3 {[%clk 0:00:32]} 0-1


[Site "https://www.chess.com"]

[Event "Titled Tuesday Blitz May 9 Late 2023"]
[White "Brueckner, Thomas"]
[Black "Escalante Ramirez, Rafael"]
[WhiteFideId "4600452"]
[BlackFideId "3900177"]
[WhiteElo "2322"]
[BlackElo "2198"]
[Result "1-0"]
[Round "09"]
[TimeControl "180+2"]
[Date "2023.05.09"]
[WhiteClock "0:01:30"]
[BlackClock "0:00:58"]

1. Nf3 {[%clk 0:03:00]}  Nf6 {[%clk 0:02:57]} 2. g3 {[%clk 0:03:00]}  b6 {[%clk 0:02:57]} 3. Bg2 {[%clk 0:03:00]}  Bb7 {[%clk 0:02:55]} 4. O-O {[%clk 0:02:59]}  c5 {[%clk 0:02:55]} 5. c4 {[%clk 0:02:50]}  e6 {[%clk 0:02:54]} 6. b3 {[%clk 0:02:49]}  Be7 {[%clk 0:02:53]} 7. Bb2 {[%clk 0:02:50]}  O-O {[%clk 0:02:51]} 8. Nc3 {[%clk 0:02:48]}  d5 {[%clk 0:02:36]} 9. cxd5 {[%clk 0:02:48]}  Nxd5 {[%clk 0:02:35]} 10. d4 {[%clk 0:02:31]}  Nxc3 {[%clk 0:02:32]} 11. Bxc3 {[%clk 0:02:31]}  Na6 {[%clk 0:02:13]} 12. Rc1 {[%clk 0:02:14]}  Rc8 {[%clk 0:02:04]} 13. Qd2 {[%clk 0:02:10]}  cxd4 {[%clk 0:02:01]} 14. Bxd4 {[%clk 0:01:56]}  Nc5 {[%clk 0:01:37]} 15. Qb2 {[%clk 0:01:54]}  Bf6 {[%clk 0:01:22]} 16. Rfd1 {[%clk 0:01:44]}  Bxd4 {[%clk 0:01:19]} 17. Nxd4 {[%clk 0:01:43]}  Bxg2 {[%clk 0:01:17]} 18. Nxe6 {[%clk 0:01:32]}  Qe7 {[%clk 0:00:58]} 19. Qxg7# {[%clk 0:01:30]} 1-0


[Site "https://www.chess.com"]

[Event "Titled Tuesday Blitz May 9 Late 2023"]
[White "Tarnowska, Aleksandra"]
[Black "De Souza, Cristiano Gomes"]
[WhiteFideId "1180967"]
[BlackFideId "2151758"]
[WhiteElo "1776"]
[BlackElo "2068"]
[Result "0-1"]
[Round "09"]
[TimeControl "180+2"]
[Date "2023.05.09"]
[WhiteClock "0:00:00"]
[BlackClock "0:01:49"]

1. e4 {[%clk 0:03:00]}  c5 {[%clk 0:02:59]} 2. Nf3 {[%clk 0:02:59]}  d6 {[%clk 0:02:57]} 3. Bb5+ {[%clk 0:02:59]}  Bd7 {[%clk 0:02:57]} 4. Bxd7+ {[%clk 0:02:59]}  Qxd7 {[%clk 0:02:58]} 5. O-O {[%clk 0:03:00]}  Nc6 {[%clk 0:02:58]} 6. c3 {[%clk 0:03:00]}  Nf6 {[%clk 0:02:57]} 7. Re1 {[%clk 0:02:59]}  e5 {[%clk 0:02:57]} 8. d4 {[%clk 0:02:58]}  Be7 {[%clk 0:02:57]} 9. dxe5 {[%clk 0:02:53]}  dxe5 {[%clk 0:02:57]} 10. Qxd7+ {[%clk 0:02:50]}  Nxd7 {[%clk 0:02:55]} 11. Nbd2 {[%clk 0:02:48]}  O-O-O {[%clk 0:02:53]} 12. Nc4 {[%clk 0:02:42]}  f6 {[%clk 0:02:53]} 13. Be3 {[%clk 0:02:41]}  Nb6 {[%clk 0:02:51]} 14. Nxb6+ {[%clk 0:02:33]}  axb6 {[%clk 0:02:52]} 15. Rad1 {[%clk 0:02:31]}  Rxd1 {[%clk 0:02:50]} 16. Rxd1 {[%clk 0:02:31]}  Rd8 {[%clk 0:02:51]} 17. Rxd8+ {[%clk 0:02:31]}  Nxd8 {[%clk 0:02:50]} 18. Nd2 {[%clk 0:02:29]}  Kc7 {[%clk 0:02:48]} 19. Kf1 {[%clk 0:02:27]}  Ne6 {[%clk 0:02:47]} 20. g3 {[%clk 0:02:25]}  b5 {[%clk 0:02:41]} 21. f4 {[%clk 0:02:24]}  b6 {[%clk 0:02:39]} 22. Nf3 {[%clk 0:02:13]}  exf4 {[%clk 0:02:33]} 23. gxf4 {[%clk 0:02:11]}  Bd6 {[%clk 0:02:28]} 24. f5 {[%clk 0:01:41]}  Nf4 {[%clk 0:02:24]} 25. Bxf4 {[%clk 0:01:11]}  Bxf4 {[%clk 0:02:23]} 26. h3 {[%clk 0:01:11]}  c4 {[%clk 0:02:20]} 27. Nd4 {[%clk 0:00:59]}  Bc1 {[%clk 0:02:17]} 28. b3 {[%clk 0:00:40]}  cxb3 {[%clk 0:02:12]} 29. axb3 {[%clk 0:00:41]}  b4 {[%clk 0:02:08]} 30. cxb4 {[%clk 0:00:38]}  Kd6 {[%clk 0:02:03]} 31. Ke2 {[%clk 0:00:34]}  Ke5 {[%clk 0:02:01]} 32. Kd3 {[%clk 0:00:28]}  Bb2 {[%clk 0:01:57]} 33. Ne6 {[%clk 0:00:18]}  g6 {[%clk 0:01:55]} 34. Nf8 {[%clk 0:00:16]}  gxf5 {[%clk 0:01:53]} 35. exf5 {[%clk 0:00:17]}  Kxf5 {[%clk 0:01:52]} 36. Nxh7 {[%clk 0:00:17]}  Kf4 {[%clk 0:01:51]} 37. Kc4 {[%clk 0:00:11]}  Kg3 {[%clk 0:01:50]} 38. Kb5 {[%clk 0:00:06]}  Kxh3 {[%clk 0:01:50]} 39. Kxb6 {[%clk 0:00:06]}  f5 {[%clk 0:01:50]} 40. Kc6 {[%clk 0:00:04]}  Kg4 {[%clk 0:01:49]} 41. Nf8 {[%clk 0:00:00]}  f4 {[%clk 0:01:49]} 0-1


[Site "https://www.chess.com"]

[Event "Titled Tuesday Blitz May 9 Late 2023"]
[White "Phillips, Rene"]
[Black "James, Stuart"]
[WhiteFideId "2056275"]
[BlackFideId "7400489"]
[WhiteElo "2185"]
[BlackElo "1950"]
[Result "1-0"]
[Round "09"]
[TimeControl "180+2"]
[Date "2023.05.09"]
[WhiteClock "0:00:52"]
[BlackClock "0:01:26"]

1. Nf3 {[%clk 0:03:00]}  d5 {[%clk 0:02:58]} 2. d4 {[%clk 0:03:01]}  Nf6 {[%clk 0:02:57]} 3. Bf4 {[%clk 0:03:02]}  e6 {[%clk 0:02:56]} 4. e3 {[%clk 0:03:02]}  Bd6 {[%clk 0:02:55]} 5. Bg3 {[%clk 0:03:03]}  c5 {[%clk 0:02:50]} 6. Nbd2 {[%clk 0:03:02]}  O-O {[%clk 0:02:47]} 7. c3 {[%clk 0:03:02]}  b6 {[%clk 0:02:46]} 8. Ne5 {[%clk 0:02:58]}  Ba6 {[%clk 0:02:41]} 9. Nc6 {[%clk 0:02:55]}  Nxc6 {[%clk 0:02:36]} 10. Bxa6 {[%clk 0:02:53]}  cxd4 {[%clk 0:02:35]} 11. Bb7 {[%clk 0:02:48]}  dxc3 {[%clk 0:02:35]} 12. bxc3 {[%clk 0:02:46]}  Bxg3 {[%clk 0:02:34]} 13. hxg3 {[%clk 0:02:23]}  Qc7 {[%clk 0:02:29]} 14. Bxa8 {[%clk 0:02:18]}  Rxa8 {[%clk 0:02:30]} 15. g4 {[%clk 0:02:13]}  Ne5 {[%clk 0:02:28]} 16. g5 {[%clk 0:02:01]}  Nd3+ {[%clk 0:02:20]} 17. Kf1 {[%clk 0:02:00]}  Qxc3 {[%clk 0:02:20]} 18. gxf6 {[%clk 0:01:47]}  Qxf6 {[%clk 0:02:21]} 19. Nf3 {[%clk 0:01:38]}  Nc5 {[%clk 0:02:12]} 20. Qd4 {[%clk 0:01:30]}  Qg6 {[%clk 0:02:07]} 21. Rc1 {[%clk 0:01:17]}  h6 {[%clk 0:02:03]} 22. Rh4 {[%clk 0:01:13]}  Ne4 {[%clk 0:01:59]} 23. Ne5 {[%clk 0:01:04]}  Qf6 {[%clk 0:01:57]} 24. Rf4 {[%clk 0:00:58]}  Qe7 {[%clk 0:01:36]} 25. Rxf7 {[%clk 0:00:56]}  Qa3 {[%clk 0:01:26]} 26. Rcc7 {[%clk 0:00:52]} 1-0


[Site "https://www.chess.com"]

[Event "Titled Tuesday Blitz May 9 Late 2023"]
[White "Dmitriev, Sergey"]
[Black "ritanovikova"]
[WhiteFideId "14101785"]
[WhiteElo "2132"]
[BlackElo "2160"]
[Result "1-0"]
[Round "09"]
[TimeControl "180+2"]
[Date "2023.05.09"]
[WhiteClock "0:01:09"]
[BlackClock "0:01:44"]

1. d4 {[%clk 0:03:00]}  g6 {[%clk 0:02:55]} 2. Bf4 {[%clk 0:02:59]}  Bg7 {[%clk 0:02:56]} 3. Nf3 {[%clk 0:02:58]}  d6 {[%clk 0:02:54]} 4. e4 {[%clk 0:02:57]}  Nf6 {[%clk 0:02:52]} 5. Nbd2 {[%clk 0:02:55]}  Nh5 {[%clk 0:02:52]} 6. Be3 {[%clk 0:02:55]}  O-O {[%clk 0:02:49]} 7. Bc4 {[%clk 0:02:53]}  c6 {[%clk 0:02:47]} 8. O-O {[%clk 0:02:51]}  b5 {[%clk 0:02:47]} 9. Bb3 {[%clk 0:02:50]}  a5 {[%clk 0:02:45]} 10. c4 {[%clk 0:02:49]}  Bb7 {[%clk 0:02:44]} 11. a3 {[%clk 0:02:40]}  b4 {[%clk 0:02:38]} 12. axb4 {[%clk 0:02:38]}  axb4 {[%clk 0:02:39]} 13. Rxa8 {[%clk 0:02:37]}  Bxa8 {[%clk 0:02:40]} 14. Qa1 {[%clk 0:02:32]}  Bb7 {[%clk 0:02:37]} 15. d5 {[%clk 0:02:26]}  c5 {[%clk 0:02:37]} 16. Qc1 {[%clk 0:02:14]}  Re8 {[%clk 0:02:35]} 17. Qc2 {[%clk 0:02:13]}  Nd7 {[%clk 0:02:34]} 18. Ra1 {[%clk 0:02:12]}  Qb6 {[%clk 0:02:33]} 19. h3 {[%clk 0:02:10]}  Ne5 {[%clk 0:02:32]} 20. Nxe5 {[%clk 0:02:09]}  Bxe5 {[%clk 0:02:33]} 21. g3 {[%clk 0:02:05]}  Ra8 {[%clk 0:02:28]} 22. Rxa8+ {[%clk 0:02:03]}  Bxa8 {[%clk 0:02:29]} 23. f4 {[%clk 0:02:03]}  Bg7 {[%clk 0:02:27]} 24. Ba4 {[%clk 0:01:57]}  Nxg3 {[%clk 0:02:25]} 25. b3 {[%clk 0:01:53]}  Ne2+ {[%clk 0:02:20]} 26. Kg2 {[%clk 0:01:52]}  Nd4 {[%clk 0:02:19]} 27. Bxd4 {[%clk 0:01:48]}  Bxd4 {[%clk 0:02:20]} 28. Nf3 {[%clk 0:01:44]}  Bf6 {[%clk 0:02:17]} 29. e5 {[%clk 0:01:43]}  Bg7 {[%clk 0:02:15]} 30. Qe2 {[%clk 0:01:36]}  Bf8 {[%clk 0:02:13]} 31. Ng5 {[%clk 0:01:30]}  h6 {[%clk 0:02:11]} 32. Ne4 {[%clk 0:01:27]}  Qc7 {[%clk 0:02:06]} 33. exd6 {[%clk 0:01:24]}  exd6 {[%clk 0:02:06]} 34. Nf6+ {[%clk 0:01:24]}  Kh8 {[%clk 0:02:03]} 35. Qe8 {[%clk 0:01:23]}  Kg7 {[%clk 0:01:58]} 36. Nd7 {[%clk 0:01:18]}  Bxd5+ {[%clk 0:01:44]} 37. cxd5 {[%clk 0:01:09]} 1-0


[Site "https://www.chess.com"]

[Event "Titled Tuesday Blitz May 9 Late 2023"]
[White "Romanchuk, Viktor"]
[Black "Sailer, Mike"]
[WhiteFideId "14109271"]
[BlackFideId "2012901"]
[WhiteElo "2242"]
[BlackElo "2109"]
[Result "1/2-1/2"]
[Round "09"]
[TimeControl "180+2"]
[Date "2023.05.09"]
[WhiteClock "0:00:11"]
[BlackClock "0:00:04"]

1. d4 {[%clk 0:02:57]}  d5 {[%clk 0:02:59]} 2. c4 {[%clk 0:02:56]}  Bf5 {[%clk 0:02:59]} 3. cxd5 {[%clk 0:02:55]}  Bxb1 {[%clk 0:02:58]} 4. Qa4+ {[%clk 0:02:55]}  Qd7 {[%clk 0:02:56]} 5. Qxd7+ {[%clk 0:02:55]}  Nxd7 {[%clk 0:02:56]} 6. Rxb1 {[%clk 0:02:55]}  Ngf6 {[%clk 0:02:55]} 7. Bd2 {[%clk 0:02:45]}  Nb6 {[%clk 0:02:52]} 8. f3 {[%clk 0:02:40]}  Nbxd5 {[%clk 0:02:46]} 9. e4 {[%clk 0:02:39]}  Nb6 {[%clk 0:02:44]} 10. Ne2 {[%clk 0:02:30]}  e6 {[%clk 0:02:40]} 11. Nc3 {[%clk 0:02:28]}  O-O-O {[%clk 0:02:36]} 12. Be3 {[%clk 0:02:28]}  Bb4 {[%clk 0:02:13]} 13. Rc1 {[%clk 0:02:19]}  Kb8 {[%clk 0:02:04]} 14. Be2 {[%clk 0:02:16]}  Rd7 {[%clk 0:01:56]} 15. Kf2 {[%clk 0:02:07]}  Bxc3 {[%clk 0:01:55]} 16. bxc3 {[%clk 0:01:59]}  h6 {[%clk 0:01:49]} 17. c4 {[%clk 0:01:57]}  g5 {[%clk 0:01:46]} 18. c5 {[%clk 0:01:55]}  Nc8 {[%clk 0:01:45]} 19. c6 {[%clk 0:01:54]}  bxc6 {[%clk 0:01:39]} 20. Rxc6 {[%clk 0:01:55]}  Rd6 {[%clk 0:01:32]} 21. Rb1+ {[%clk 0:01:47]}  Nb6 {[%clk 0:01:31]} 22. Rc5 {[%clk 0:01:32]}  Nd7 {[%clk 0:01:26]} 23. Rc2 {[%clk 0:01:27]}  f5 {[%clk 0:01:22]} 24. a4 {[%clk 0:01:25]}  Ka8 {[%clk 0:01:12]} 25. a5 {[%clk 0:01:24]}  Nc8 {[%clk 0:01:07]} 26. Rxc7 {[%clk 0:01:17]}  fxe4 {[%clk 0:01:05]} 27. fxe4 {[%clk 0:01:14]}  Rf8+ {[%clk 0:00:58]} 28. Kg1 {[%clk 0:01:13]}  e5 {[%clk 0:00:46]} 29. dxe5 {[%clk 0:01:03]}  Nxe5 {[%clk 0:00:45]} 30. Rxa7+ {[%clk 0:01:02]}  Nxa7 {[%clk 0:00:43]} 31. Bc5 {[%clk 0:00:59]}  Rfd8 {[%clk 0:00:35]} 32. Bxd6 {[%clk 0:00:57]}  Rxd6 {[%clk 0:00:34]} 33. Kf2 {[%clk 0:00:54]}  Nac6 {[%clk 0:00:28]} 34. Ke3 {[%clk 0:00:40]}  Nxa5 {[%clk 0:00:21]} 35. Ra1 {[%clk 0:00:40]}  Nc6 {[%clk 0:00:21]} 36. Bb5 {[%clk 0:00:39]}  Kb7 {[%clk 0:00:22]} 37. h4 {[%clk 0:00:21]}  Kb6 {[%clk 0:00:21]} 38. Bxc6 {[%clk 0:00:16]}  Nxc6 {[%clk 0:00:20]} 39. hxg5 {[%clk 0:00:17]}  hxg5 {[%clk 0:00:20]} 40. Rf1 {[%clk 0:00:17]}  Rg6 {[%clk 0:00:15]} 41. Rf5 {[%clk 0:00:16]}  Kc7 {[%clk 0:00:13]} 42. Kf3 {[%clk 0:00:16]}  Kd6 {[%clk 0:00:11]} 43. Kg4 {[%clk 0:00:16]}  Ne5+ {[%clk 0:00:11]} 44. Kh5 {[%clk 0:00:16]}  Rg8 {[%clk 0:00:09]} 45. Rf6+ {[%clk 0:00:16]}  Ke7 {[%clk 0:00:09]} 46. Ra6 {[%clk 0:00:15]}  Nf7 {[%clk 0:00:06]} 47. Kg4 {[%clk 0:00:10]}  Ne5+ {[%clk 0:00:05]} 48. Kf5 {[%clk 0:00:10]}  Nf7 {[%clk 0:00:06]} 49. Ra7+ {[%clk 0:00:10]}  Ke8 {[%clk 0:00:05]} 50. Kf6 {[%clk 0:00:10]}  Nh6 {[%clk 0:00:02]} 51. Ra8+ {[%clk 0:00:09]}  Kd7 {[%clk 0:00:02]} 52. Rxg8 {[%clk 0:00:09]}  Nxg8+ {[%clk 0:00:02]} 53. Kxg5 {[%clk 0:00:10]}  Ke6 {[%clk 0:00:03]} 54. Kg6 {[%clk 0:00:10]}  Ne7+ {[%clk 0:00:03]} 55. Kg5 {[%clk 0:00:10]}  Ke5 {[%clk 0:00:02]} 56. g4 {[%clk 0:00:10]}  Kxe4 {[%clk 0:00:03]} 57. Kf6 {[%clk 0:00:11]}  Nd5+ {[%clk 0:00:03]} 58. Kf7 {[%clk 0:00:11]}  Nf4 {[%clk 0:00:04]} 59. g5 {[%clk 0:00:10]}  Kf3 {[%clk 0:00:04]} 60. g6 {[%clk 0:00:11]}  Nxg6 {[%clk 0:00:04]} 1/2-1/2


[Site "https://www.chess.com"]